bitfinex-derivatives/quotes_BTCF0:USTF0_20250211
["timestamp","ask_amount","ask_price","bid_price","bid_amount"]
[1739291844485,0.00015533,96543.0,96542.0,0.09322582]
[1739291844674,0.00015533,96543.0,96542.0,0.30037932]
[1739291846476,0.00115533,96543.0,96542.0,0.30037932]
[1739291847179,0.00215533,96543.0,96542.0,0.30037932]
[1739291847585,0.00215533,96543.0,96539.0,0.0824]
[1739291847881,0.207167,96536.0,96527.0,0.2896392]
[1739291848070,0.207167,96536.0,96534.0,0.09322582]
[1739291848881,0.3608,96537.0,96534.0,0.09322582]
[1739291849285,0.3608,96537.0,96536.0,0.09322582]
[1739291850479,0.3618,96537.0,96536.0,0.09322582]
[1739291850780,0.3628,96537.0,96536.0,0.09322582]
[1739291852624,0.3628,96537.0,96528.0,0.2071826]
[1739291852808,0.3628,96537.0,96533.0,0.09322582]
[1739291853002,0.2071769,96532.0,96527.0,0.09477972]
[1739291853202,0.5679835,96528.0,96527.0,0.09477972]
[1739291853412,0.6433835,96528.0,96527.0,0.09477972]
[1739291854983,0.6443835,96528.0,96527.0,0.09477972]
[1739291856486,0.6463835,96528.0,96527.0,0.09477972]
[1739291856785,0.4392,96528.0,96527.0,0.09477972]
[1739291856983,0.44883096,96528.0,96527.0,0.09477972]
[1739291857179,0.08803096,96528.0,96527.0,0.09477972]
[1739291859984,0.01263096,96528.0,96527.0,0.30196542]
[1739291860191,0.01263096,96528.0,96527.0,0.90196543]
[1739291860988,0.01263096,96528.0,96527.0,0.30196542]
[1739291864494,0.003,96528.0,96527.0,0.30196542]
[1739291871486,0.003,96528.0,96527.0,0.90196543]
[1739291873692,0.003,96528.0,96527.0,0.30196542]
[1739291877391,0.00015533,96543.0,96530.0,0.09322582]
[1739291877591,0.00968705,96543.0,96542.0,0.30037932]
[1739291877898,0.00015533,96543.0,96542.0,0.30037932]
[1739291878192,0.00015533,96543.0,96542.0,0.66117932]
[1739291878399,0.07416,96563.0,96544.0,0.09322582]
[1739291878591,0.07416,96563.0,96553.0,0.66115572]
[1739291878987,0.00972824,96559.0,96553.0,0.66115572]
[1739291879799,0.00972824,96559.0,96558.0,0.2071192]
[1739291879998,0.21357173,96563.0,96562.0,0.2071106]
[1739291880188,0.21357173,96563.0,96562.0,0.30033642]
[1739291881296,0.22319832,96563.0,96562.0,0.30033642]
[1739291881691,0.23519832,96563.0,96562.0,0.30033642]
[1739291881887,0.23519832,96563.0,96562.0,0.90033643]
[1739291882093,0.23519832,96563.0,96552.0,0.207144]
[1739291882295,0.3608,96551.0,96535.0,0.1584]
[1739291882612,0.15432,96550.0,96542.0,0.2071666]
[1739291883996,0.16390752,96550.0,96543.0,0.2071625]
[1739291884195,0.16390752,96550.0,96544.0,0.20731603]
[1739291884592,0.16490752,96550.0,96544.0,0.20731603]
[1739291884892,0.16490752,96550.0,96545.0,0.2071572]
[1739291885296,0.16590752,96550.0,96545.0,0.2071572]
[1739291885501,0.16590752,96550.0,96544.0,0.00015533]
[1739291887301,0.2071532,96548.0,96544.0,0.00015533]
[1739291887896,0.16590752,96550.0,96544.0,0.00015533]
[1739291888200,0.2071595,96545.0,96544.0,0.00015533]
[1739291889497,0.2081595,96545.0,96544.0,0.00015533]
[1739291890401,0.2091595,96545.0,96544.0,0.00015533]
[1739291891289,0.002,96545.0,96544.0,0.00015533]
[1739291891489,0.12606082,96545.0,96544.0,0.30053035]
[1739291891999,0.05238082,96545.0,96544.0,0.30053035]
[1739291892198,0.12606082,96545.0,96544.0,0.30053035]
[1739291892394,0.05238082,96545.0,96544.0,0.30053035]
[1739291894802,0.002,96545.0,96544.0,0.30053035]
[1739291896010,0.002,96545.0,96544.0,0.90053036]
[1739291901308,0.002,96545.0,96544.0,0.30053035]
[1739291901512,0.05037218,96549.0,96544.0,0.09338115]
[1739291901706,0.05037218,96549.0,96548.0,0.30036642]
[1739291902395,0.18394468,96558.0,96548.0,0.09322582]
[1739291902600,0.18394468,96569.0,96562.0,0.2071106]
[1739291902810,0.01223599,96563.0,96562.0,0.30033642]
[1739291903000,0.00010039,96563.0,96562.0,0.30033642]
[1739291904198,0.00110039,96563.0,96562.0,0.30033642]
[1739291904804,0.00110039,96563.0,96562.0,0.09322582]
[1739291905126,0.01310039,96563.0,96562.0,0.09322582]
[1739291905810,0.01310039,96563.0,96562.0,0.30033642]
[1739291906609,0.01310039,96563.0,96562.0,0.66113642]
[1739291908710,0.01310039,96563.0,96562.0,0.30033642]
[1739291908916,0.37390039,96563.0,96562.0,0.30033642]
[1739291909208,0.37390039,96563.0,96562.0,0.90033643]
[1739291910012,0.37390039,96563.0,96562.0,0.09322582]
[1739291911319,0.37390039,96563.0,96562.0,0.90033643]
[1739291911621,0.37390039,96563.0,96562.0,0.30033642]
[1739291912813,0.01310039,96563.0,96562.0,0.30033642]
[1739291914510,0.21347134,96588.0,96580.0,0.207072]
[1739291914815,0.21347134,96588.0,96580.0,0.30029782]
[1739291915019,0.43368,96581.0,96580.0,0.30029782]
[1739291915608,0.44768,96581.0,96580.0,0.30029782]
[1739291915804,0.45368,96581.0,96580.0,0.30029782]
[1739291916209,0.39312967,96581.0,96580.0,0.30029782]
[1739291916424,0.46600967,96581.0,96580.0,0.30029782]
[1739291916606,0.3808,96581.0,96580.0,0.30029782]
[1739291916930,0.02,96581.0,96580.0,0.30029782]
[1739291917613,0.006,96581.0,96580.0,0.30029782]
[1739291917807,0.21347134,96593.0,96580.0,0.09322582]
[1739291918015,0.21347134,96593.0,96592.0,0.30027212]
[1739291918414,0.22550177,96593.0,96592.0,0.30027212]
[1739291919922,0.22850177,96593.0,96592.0,0.30027212]
[1739291920516,0.01503043,96593.0,96592.0,0.30027212]
[1739291920912,0.01503043,96593.0,96592.0,0.90027213]
[1739291921418,0.23806075,96609.0,96592.0,0.09322582]
[1739291921623,0.07288,96606.0,96598.0,0.09322582]
[1739291921823,0.07288,96606.0,96599.0,0.30025712]
[1739291922617,0.11211999,96600.0,96599.0,0.30025712]
[1739291923123,0.11711999,96600.0,96599.0,0.30025712]
[1739291923819,0.11711999,96600.0,96599.0,0.90025713]
[1739291924416,0.12311999,96600.0,96599.0,0.90125713]
[1739291924620,0.111,96600.0,96599.0,0.90125713]
[1739291928134,0.111,96600.0,96599.0,0.30125712]
[1739291929438,0.111,96600.0,96599.0,0.90125713]
[1739291930536,0.111,96600.0,96599.0,0.30125712]
[1739291942641,0.4718,96600.0,96599.0,0.90125713]
[1739291943252,0.7516692,96600.0,96599.0,0.2080313]
[1739291943655,0.111,96600.0,96599.0,0.30125712]
[1739291944153,0.07284,96616.0,96615.0,0.206997]
[1739291944757,0.09712678,96617.0,96616.0,0.2069949]
[1739291944957,0.09712678,96617.0,96616.0,0.30022072]
[1739291946554,0.3608,96619.0,96616.0,0.09322582]
[1739291946851,0.3608,96619.0,96618.0,0.30021642]
[1739291947243,0.01205619,96620.0,96619.0,0.2069884]
[1739291947444,0.15306075,96627.0,96626.0,0.2069734]
[1739291947654,0.15306075,96627.0,96626.0,0.30019922]
[1739291948855,0.180394,96627.0,96626.0,0.30119922]
[1739291950245,0.03433325,96627.0,96626.0,0.30219922]
[1739291953959,0.03433325,96627.0,96626.0,0.90219923]
[1739291954260,0.03433325,96627.0,96626.0,0.09522582]
[1739291954960,0.03433325,96627.0,96626.0,0.30219932]
[1739291956260,0.10717325,96627.0,96626.0,0.30219932]
[1739291957063,0.10717325,96627.0,96626.0,0.2089735]
[1739291958362,0.26055772,96627.0,96626.0,0.2089735]
[1739291958563,0.26055772,96627.0,96603.0,0.2169]
[1739291958763,0.3608,96611.0,96610.0,0.2070078]
[1739291959060,0.4336,96611.0,96610.0,0.2070078]
[1739291959256,0.4336,96611.0,96610.0,0.30023362]
[1739291959656,0.4336,96611.0,96610.0,0.90023363]
[1739291960259,0.4366,96611.0,96610.0,0.90023363]
[1739291960859,0.4346,96611.0,96610.0,0.90023363]
[1739291961360,0.4486,96611.0,96610.0,0.90123363]
[1739291961963,0.4346,96611.0,96610.0,0.90023363]
[1739291962157,0.4496,96611.0,96610.0,0.90123363]
[1739291963069,0.4486,96611.0,96610.0,0.90123363]
[1739291963365,0.4516,96611.0,96610.0,0.90123363]
[1739291963563,0.4366,96611.0,96610.0,0.90023363]
[1739291963865,0.45817474,96611.0,96610.0,0.09422582]
[1739291964167,0.66718044,96611.0,96610.0,0.001]
[1739291964463,0.66718044,96611.0,96592.0,0.2070461]
[1739291964464,0.2070406,96595.0,96592.0,0.2070461]
[1739291964660,0.3608,96593.0,96592.0,0.2070461]
[1739291965261,0.3608,96593.0,96592.0,0.30027192]
[1739291966767,0.3688,96593.0,96592.0,0.30127192]
[1739291966968,0.3698,96593.0,96592.0,0.30127192]
[1739291967269,0.38167087,96593.0,96592.0,0.30127192]
[1739291968666,0.38367087,96593.0,96592.0,0.30127192]
[1739291969668,0.38767087,96593.0,96592.0,0.30027192]
[1739291970361,0.37567087,96593.0,96592.0,0.30027192]
[1739291970670,0.38667087,96593.0,96592.0,0.30027192]
[1739291971063,0.39067087,96593.0,96592.0,0.30027192]
[1739291971261,0.37667087,96593.0,96592.0,0.30027192]
[1739291971470,0.38967087,96593.0,96592.0,0.30027192]
[1739291972173,0.3778,96593.0,96592.0,0.30027192]
[1739291973471,0.3788,96593.0,96592.0,0.30027192]
[1739291973668,0.3748,96593.0,96592.0,0.30027192]
[1739291973965,0.3902611,96593.0,96592.0,0.30027192]
[1739291974367,0.3752611,96593.0,96592.0,0.30027192]
[1739291974570,0.3882611,96593.0,96592.0,0.90027193]
[1739291974770,0.3852611,96593.0,96592.0,0.90027193]
[1739291974967,0.3892611,96593.0,96592.0,0.90027193]
[1739291975268,0.3902611,96593.0,96592.0,0.90027193]
[1739291976474,0.3892611,96593.0,96592.0,0.90027193]
[1739291976969,0.3862611,96593.0,96592.0,0.90027193]
[1739291977165,0.3902611,96593.0,96592.0,0.90027193]
[1739291977361,0.3882611,96593.0,96592.0,0.90027193]
[1739291978165,0.3872611,96593.0,96592.0,0.90027193]
[1739291978864,0.3752611,96593.0,96592.0,0.90027193]
[1739291979061,0.3882611,96593.0,96592.0,0.90027193]
[1739291981366,0.3852611,96593.0,96592.0,0.90027193]
[1739291981568,0.3882611,96593.0,96592.0,0.90027193]
[1739291982078,0.3892611,96593.0,96592.0,0.90027193]
[1739291983473,0.3752611,96593.0,96592.0,0.90027193]
[1739291983776,0.3872611,96593.0,96592.0,0.30027192]
[1739291984576,0.3892611,96593.0,96592.0,0.30027192]
[1739291988477,0.5963054,96593.0,96588.0,0.2070544]
[1739291988771,0.3608,96589.0,96568.0,0.01260842]
[1739291988975,0.2070957,96569.0,96568.0,0.01200842]
[1739291989173,0.6406957,96569.0,96568.0,0.01200842]
[1739291989372,0.6406957,96569.0,96568.0,0.10523424]
[1739291989585,0.6406957,96569.0,96568.0,0.09322582]
[1739291989875,0.4336,96569.0,96568.0,0.09322582]
[1739291991880,0.44549452,96569.0,96568.0,0.09322582]
[1739291992281,0.45049452,96569.0,96568.0,0.09322582]
[1739291993579,0.45049452,96569.0,96568.0,0.30032372]
[1739291994079,0.45149452,96569.0,96568.0,0.30032372]
[1739291994284,0.45249452,96569.0,96568.0,0.30032372]
[1739291994470,0.01889452,96569.0,96568.0,0.30032372]
[1739291994675,0.0798,96569.0,96568.0,0.30032372]
[1739291995070,0.0818,96569.0,96568.0,0.2070979]
[1739291995275,0.0818,96569.0,96568.0,0.30032372]
[1739291997169,0.0818,96569.0,96568.0,0.90032373]
[1739291999587,0.009,96569.0,96568.0,0.90032373]
[1739292002580,0.3698,96569.0,96568.0,0.69322583]
[1739292002888,0.3698,96569.0,96568.0,0.09322582]
[1739292007200,0.4426,96569.0,96568.0,0.30032372]
[1739292007596,0.6496957,96569.0,96568.0,0.09322582]
[1739292008595,0.4426,96569.0,96561.0,0.2071128]
[1739292008801,0.3023993,96568.0,96567.0,0.09322582]
[1739292009501,0.0953,96568.0,96567.0,0.09322582]
[1739292010392,0.44316001,96569.0,96567.0,0.09322582]
[1739292010599,0.4426,96569.0,96568.0,0.09322582]
[1739292010803,0.4416,96569.0,96568.0,0.09322582]
[1739292010998,0.4416,96569.0,96568.0,0.30032372]
[1739292010999,0.4336,96569.0,96568.0,0.30032372]
[1739292011199,0.4356,96569.0,96568.0,0.30032372]
[1739292011401,0.002,96569.0,96568.0,0.30032372]
[1739292011902,0.0728,96591.0,96590.0,0.2070507]
[1739292012199,0.3608,96600.0,96592.0,0.2070451]
[1739292012200,0.0728,96595.0,96592.0,0.2070451]
[1739292012593,0.0728,96595.0,96580.0,0.1902]
[1739292012594,0.19570362,96598.0,96597.0,0.2070357]
[1739292012805,0.19570362,96598.0,96597.0,0.30026152]
[1739292014010,0.01203072,96598.0,96597.0,0.30026152]
[1739292014205,0.3608,96600.0,96597.0,0.09322582]
[1739292014394,0.3608,96600.0,96599.0,0.09322582]
[1739292014597,0.3608,96600.0,96599.0,0.30025722]
[1739292015509,0.3678,96600.0,96599.0,0.30025722]
[1739292015709,0.007,96600.0,96599.0,0.30025722]
[1739292015904,0.03360416,96600.0,96599.0,0.30025722]
[1739292016506,0.022,96600.0,96599.0,0.30025722]
[1739292017603,0.02,96600.0,96599.0,0.30025722]
[1739292018304,0.019,96600.0,96599.0,0.30025722]
[1739292018903,0.019,96600.0,96599.0,0.67432737]
[1739292019503,0.019,96600.0,96599.0,1.03512737]
[1739292021908,0.3798,96600.0,96599.0,0.09322582]
[1739292022106,0.5868292,96600.0,96599.0,0.09322582]
[1739292023206,0.5868292,96600.0,96599.0,0.30025722]
[1739292023507,0.5868292,96600.0,96599.0,0.09322582]
[1739292023909,0.3798,96600.0,96599.0,0.09322582]
[1739292024317,0.3798,96600.0,96599.0,0.30025722]
[1739292025309,0.3748,96600.0,96599.0,0.30025722]
[1739292025513,0.3808,96600.0,96599.0,0.30025722]
[1739292026816,0.02,96600.0,96599.0,0.30025722]
[1739292029520,0.3808,96600.0,96599.0,0.67432737]
[1739292029813,0.3808,96600.0,96599.0,0.30025722]
[1739292030727,0.02,96600.0,96599.0,0.67432737]
[1739292030919,0.02,96600.0,96599.0,0.66105722]
[1739292033414,0.02,96600.0,96599.0,0.75325722]
[1739292035225,0.006,96600.0,96599.0,0.75325722]
[1739292035421,0.008,96600.0,96599.0,0.75325722]
[1739292035621,0.002,96600.0,96599.0,0.75425722]
[1739292035818,0.002,96600.0,96599.0,0.39345722]
[1739292036912,0.003,96600.0,96599.0,0.18642582]
[1739292037226,0.003,96600.0,96599.0,0.67532737]
[1739292037821,0.008,96600.0,96599.0,0.67632737]
[1739292038029,0.009,96600.0,96599.0,0.67532737]
[1739292038417,0.009,96600.0,96599.0,0.67432737]
[1739292038618,0.016,96600.0,96599.0,0.67532737]
[1739292040025,0.016,96600.0,96599.0,0.67432737]
[1739292040515,0.2230293,96600.0,96599.0,0.30025722]
[1739292040715,0.2070398,96596.0,96594.0,0.2070402]
[1739292040927,0.3608,96595.0,96594.0,0.30026602]
[1739292042129,0.3608,96595.0,96588.0,0.00015534]
[1739292042328,0.5678528,96589.0,96588.0,0.00015534]
[1739292042533,0.2070764,96578.0,96572.0,0.00052]
[1739292042831,0.6406364,96578.0,96564.0,0.0951]
[1739292043032,0.6406364,96578.0,96573.0,0.2070871]
[1739292043233,0.6406364,96578.0,96564.0,0.0951]
[1739292043234,0.43356,96578.0,96574.0,0.39302169]
[1739292043628,0.43356,96578.0,96577.0,0.20863166]
[1739292044341,0.07576,96578.0,96577.0,0.30185748]
[1739292044528,0.08733894,96578.0,96577.0,0.30185748]
[1739292046636,0.02757894,96578.0,96577.0,0.30185748]
[1739292047029,0.02757894,96578.0,96577.0,0.67592763]
[1739292050033,0.02857894,96578.0,96577.0,0.67592763]
[1739292050235,0.014,96578.0,96577.0,0.30185748]
[1739292050425,0.017,96578.0,96577.0,0.30185748]
[1739292051731,0.017,96578.0,96577.0,0.67592763]
[1739292052831,0.5848764,96578.0,96577.0,0.00155306]
[1739292054537,0.5848764,96578.0,96577.0,0.20863166]
[1739292055144,0.45056,96578.0,96577.0,0.20863166]
[1739292055331,0.46199556,96578.0,96577.0,0.20863166]
[1739292056939,0.38923556,96578.0,96577.0,0.20863166]
[1739292057147,0.45056,96578.0,96577.0,0.30185748]
[1739292057440,0.017,96578.0,96577.0,0.30185748]
[1739292057840,0.017,96578.0,96577.0,0.66265748]
[1739292058545,0.014,96578.0,96577.0,0.66365748]
[1739292059648,0.00015534,96587.0,96586.0,0.2070593]
[1739292059847,0.00015534,96587.0,96586.0,0.30028512]
[1739292060243,0.00015534,96587.0,96586.0,0.67435527]
[1739292060748,0.01015534,96587.0,96586.0,0.67435527]
[1739292061639,0.01015534,96587.0,96586.0,0.09322582]
[1739292061949,0.01015534,96587.0,96586.0,0.09422582]
[1739292062943,0.00115534,96587.0,96586.0,0.39598512]
[1739292063245,0.00215534,96587.0,96586.0,0.39498512]
[1739292063646,0.00115534,96587.0,96586.0,0.39298512]
[1739292063844,0.01015534,96587.0,96586.0,0.39298512]
[1739292064146,0.15308239,96597.0,96596.0,0.2070378]
[1739292064344,0.51388239,96597.0,96596.0,0.30026362]
[1739292065342,0.51388239,96597.0,96589.0,0.2070512]
[1739292065548,0.3608,96590.0,96589.0,0.2070512]
[1739292065752,0.43356,96590.0,96589.0,0.2070512]
[1739292067147,0.44356,96590.0,96589.0,0.2080512]
[1739292067444,0.44556,96590.0,96589.0,0.2080512]
[1739292068044,0.45674281,96590.0,96589.0,0.2080512]
[1739292068645,0.45674281,96590.0,96589.0,0.30127702]
[1739292068951,0.45574281,96590.0,96589.0,0.30327702]
[1739292069153,0.44456,96590.0,96589.0,0.30327702]
[1739292069543,0.08376,96590.0,96589.0,0.30327702]
[1739292069842,0.001,96590.0,96589.0,0.30227702]
[1739292070045,0.002,96590.0,96589.0,0.31227702]
[1739292072047,0.001,96590.0,96589.0,0.31027702]
[1739292072252,0.002,96590.0,96589.0,0.31227702]
[1739292072657,0.002,96590.0,96589.0,0.68634717]
[1739292073742,0.001,96590.0,96589.0,0.69134717]
[1739292074058,0.001,96590.0,96589.0,0.69634877]
[1739292075345,0.15308239,96602.0,96601.0,0.2070271]
[1739292075858,0.15308239,96602.0,96596.0,0.2070368]
[1739292076157,0.0932,96601.0,96596.0,0.09322582]
[1739292076348,0.0932,96601.0,96598.0,0.2070323]
[1739292076758,0.0932,96601.0,96599.0,0.2070308]
[1739292077054,0.0782,96601.0,96600.0,0.2070292]
[1739292077257,0.0712,96601.0,96596.0,0.09322582]
[1739292077450,0.14392,96601.0,96576.0,0.00155309]
[1739292077753,0.5458698,96582.0,96576.0,0.00155309]
[1739292077956,0.24852,96581.0,96576.0,0.09477891]
[1739292078253,0.24152,96581.0,96576.0,0.09477891]
[1739292078650,0.22652,96581.0,96576.0,0.09477891]
[1739292078948,0.089,96581.0,96576.0,0.10177891]
[1739292079253,0.089,96581.0,96580.0,0.2070721]
[1739292079548,0.16172,96581.0,96580.0,0.2070721]
[1739292080252,0.17398384,96581.0,96580.0,0.2070721]
[1739292081255,0.17498384,96581.0,96580.0,0.2070721]
[1739292081655,0.22533068,96581.0,96580.0,0.2070721]
[1739292082457,0.13633068,96581.0,96580.0,0.30029792]
[1739292082957,0.13633068,96581.0,96580.0,0.2070721]
[1739292083160,0.13633068,96581.0,96580.0,0.30029792]
[1739292085355,0.13633068,96581.0,96580.0,0.09322582]
[1739292085559,0.2070936,96570.0,96569.0,0.00015534]
[1739292085761,0.5678936,96570.0,96569.0,1e-08]
[1739292086656,0.5698936,96570.0,96569.0,1e-08]
[1739292087058,0.5708936,96570.0,96569.0,1e-08]
[1739292088565,0.58216018,96570.0,96569.0,1e-08]
[1739292090768,0.58116018,96570.0,96569.0,1e-08]
[1739292090960,0.58016018,96570.0,96569.0,1e-08]
[1739292091161,0.58116018,96570.0,96569.0,1e-08]
[1739292091364,0.58016018,96570.0,96569.0,1e-08]
[1739292091955,0.58616018,96570.0,96569.0,1e-08]
[1739292093681,0.2071332,96552.0,96540.0,0.12365192]
[1739292093873,0.3608,96548.0,96545.0,0.2071471]
[1739292094072,0.3608,96548.0,96547.0,0.39436872]
[1739292095573,0.3618,96548.0,96547.0,0.39436872]
[1739292096477,0.3628,96548.0,96547.0,0.76843887]
[1739292098183,0.3628,96548.0,96547.0,0.56129597]
[1739292099278,0.002,96548.0,96547.0,0.39436872]
[1739292101081,0.002,96548.0,96547.0,0.76843887]
[1739292110886,0.3628,96548.0,96547.0,0.76843887]
[1739292111081,0.3628,96548.0,96538.0,0.17559736]
[1739292111082,0.2071519,96543.0,96538.0,0.00015534]
[1739292111286,0.3608,96539.0,96538.0,0.00015534]
[1739292111492,0.43352,96539.0,96538.0,0.00015534]
[1739292111895,0.6406801,96539.0,96538.0,0.00015534]
[1739292113183,0.43452,96539.0,96538.0,0.00015534]
[1739292113380,0.43452,96539.0,96538.0,0.30054336]
[1739292113591,0.43352,96539.0,96538.0,0.30054336]
[1739292113783,0.43452,96539.0,96538.0,0.30054336]
[1739292113982,0.44551544,96539.0,96538.0,0.30054336]
[1739292114484,0.44651544,96539.0,96538.0,0.30054336]
[1739292114788,0.3628,96539.0,96538.0,0.30054336]
[1739292114986,0.43552,96539.0,96538.0,0.00015534]
[1739292115885,0.43552,96539.0,96538.0,0.09338116]
[1739292117094,0.43552,96539.0,96538.0,0.30054336]
[1739292118598,0.43552,96539.0,96538.0,0.67461351]
[1739292118986,0.07472,96539.0,96538.0,0.67461351]
[1739292119182,0.002,96539.0,96538.0,0.67461351]
[1739292119495,0.002,96539.0,96538.0,0.30054336]
[1739292119895,0.22586974,96552.0,96551.0,0.2071343]
[1739292120093,0.22586974,96552.0,96551.0,0.30036012]
[1739292120499,0.07272,96552.0,96551.0,0.30036012]
[1739292122297,0.3608,96558.0,96551.0,0.30036012]
[1739292122298,0.3608,96558.0,96556.0,0.2071236]
[1739292122599,0.3608,96558.0,96556.0,0.30034942]
[1739292122600,0.07287534,96557.0,96556.0,0.30034942]
[1739292123192,0.08394176,96557.0,96556.0,0.30034942]
[1739292123497,0.09294176,96557.0,96556.0,0.30034942]
[1739292124098,0.02022176,96557.0,96556.0,0.30034942]
[1739292124300,0.09290176,96557.0,96556.0,0.30034942]
[1739292126403,0.45370176,96557.0,96556.0,0.30034942]
[1739292126804,0.09290176,96557.0,96556.0,0.30034942]
[1739292127801,0.00915534,96557.0,96556.0,0.30034942]
[1739292128494,0.3608,96569.0,96568.0,0.2070979]
[1739292128696,0.3608,96569.0,96568.0,0.30032372]
[1739292129706,0.3628,96569.0,96568.0,0.30032372]
[1739292131096,0.3628,96569.0,96568.0,0.67439387]
[1739292131997,0.3758,96569.0,96568.0,0.67539387]
[1739292133809,0.3758,96569.0,96568.0,0.30132372]
[1739292134001,0.7366,96569.0,96568.0,0.30132372]
[1739292136208,0.80928,96569.0,96568.0,0.30132372]
[1739292138709,0.44848,96569.0,96568.0,0.30132372]
[1739292139213,0.3758,96569.0,96568.0,0.30132372]
[1739292140411,0.015,96569.0,96568.0,0.30132372]
[1739292147015,0.015,96569.0,96568.0,0.2080979]
[1739292148415,0.014,96569.0,96568.0,0.2070979]
[1739292150517,0.014,96569.0,96568.0,0.30032372]
[1739292152123,0.012,96569.0,96568.0,0.10439115]
[1739292152321,0.15314974,96573.0,96572.0,0.2070893]
[1739292152523,0.18370781,96582.0,96577.0,0.2070786]
[1739292152815,0.18370781,96582.0,96577.0,0.30030442]
[1739292153721,0.00515534,96578.0,96577.0,0.30030442]
[1739292154419,0.00515534,96578.0,96577.0,0.30130442]
[1739292154719,0.01915534,96578.0,96577.0,0.30130442]
[1739292154919,0.01915534,96578.0,96577.0,0.67537457]
[1739292155218,0.00015534,96578.0,96577.0,0.67437457]
[1739292155417,0.00115534,96578.0,96577.0,0.68137457]
[1739292155924,0.3716618,96590.0,96589.0,0.2070529]
[1739292156119,0.3716618,96590.0,96589.0,0.30027872]
[1739292158620,0.3726618,96590.0,96589.0,0.67434887]
[1739292158825,0.0118618,96590.0,96589.0,0.67434887]
[1739292159820,0.08675534,96599.0,96589.0,0.67434887]
[1739292159821,0.00015534,96599.0,96589.0,0.09322582]
[1739292160028,0.00015534,96599.0,96597.0,0.30026152]
[1739292160716,0.01127517,96599.0,96597.0,0.30026152]
[1739292161321,0.3668,96598.0,96597.0,0.30026152]
[1739292162017,0.3678,96598.0,96597.0,0.30026152]
[1739292162426,0.002,96598.0,96597.0,0.46729597]
[1739292162630,0.009,96598.0,96597.0,0.30126152]
[1739292163127,0.008,96598.0,96597.0,0.30126152]
[1739292163423,0.18370781,96615.0,96614.0,0.2069993]
[1739292163723,0.26755721,96615.0,96614.0,0.2069993]
[1739292164131,0.0838494,96615.0,96614.0,0.2069993]
[1739292164329,0.0838494,96615.0,96614.0,0.30022512]
[1739292164330,0.0112494,96615.0,96614.0,0.30022512]
[1739292164628,0.0726,96616.0,96615.0,0.2069972]
[1739292164831,0.0726,96616.0,96615.0,0.30022302]
[1739292165928,0.0796,96616.0,96615.0,0.30022302]
[1739292166127,0.0906,96616.0,96615.0,0.30122302]
[1739292167530,0.0906,96616.0,96615.0,0.09422582]
[1739292168127,0.0906,96616.0,96615.0,0.30122302]
[1739292168722,0.0846,96616.0,96615.0,0.30122302]
[1739292170528,0.0946,96616.0,96615.0,0.30122302]
[1739292171226,0.0796,96616.0,96615.0,0.30022302]
[1739292171431,0.0796,96616.0,96615.0,0.30322302]
[1739292171640,0.01091041,96617.0,96615.0,0.30322302]
[1739292171935,0.18370781,96624.0,96623.0,0.20698]
[1739292172234,0.18370781,96624.0,96623.0,0.30020582]
[1739292174239,0.01109197,96625.0,96623.0,0.30020582]
[1739292174541,0.3608,96628.0,96627.0,0.2069714]
[1739292174733,0.3608,96628.0,96627.0,0.30019722]
[1739292174930,0.3608,96628.0,96627.0,0.67426737]
[1739292175935,0.37161074,96628.0,96627.0,0.67426737]
[1739292176330,0.37161074,96628.0,96627.0,0.2069714]
[1739292177434,0.37161074,96628.0,96627.0,0.30019722]
[1739292178031,0.37461074,96628.0,96627.0,0.30019722]
[1739292179438,0.01381074,96628.0,96627.0,0.30019722]
[1739292179936,0.003,96628.0,96627.0,0.30019722]
[1739292180639,0.003,96628.0,96627.0,0.30519722]
[1739292181540,0.01096858,96635.0,96634.0,0.2069564]
[1739292181737,0.18370781,96637.0,96636.0,0.2069522]
[1739292182136,0.19502951,96637.0,96636.0,0.2069522]
[1739292183943,0.19502951,96637.0,96627.0,0.005]
[1739292184144,0.3608,96629.0,96628.0,0.2069693]
[1739292184637,0.19502951,96637.0,96636.0,0.2069522]
[1739292184842,0.19602951,96637.0,96636.0,0.2069522]
[1739292185636,0.19502951,96637.0,96636.0,0.2069522]
[1739292186238,0.06265159,96637.0,96636.0,0.2069522]
[1739292188233,0.06265159,96637.0,96636.0,0.30017802]
[1739292188641,0.06165159,96637.0,96636.0,0.30117802]
[1739292190444,0.0113217,96637.0,96636.0,0.30117802]
[1739292190637,0.3608,96641.0,96640.0,0.2069436]
[1739292190846,0.3608,96641.0,96640.0,0.30016942]
[1739292191046,0.3608,96641.0,96640.0,0.67423957]
[1739292191842,0.37163136,96641.0,96636.0,0.003]
[1739292192047,0.2069461,96639.0,96632.0,0.18495154]
[1739292192240,0.2069461,96639.0,96625.0,0.00015526]
[1739292192241,0.3608,96633.0,96625.0,0.00015526]
[1739292192434,0.07252,96632.0,96631.0,0.2069628]
[1739292194443,0.07252,96632.0,96631.0,0.2119628]
[1739292197247,0.07252,96632.0,96631.0,0.2069628]
[1739292197547,0.07452,96632.0,96626.0,0.2069731]
[1739292197747,0.07452,96632.0,96630.0,0.09322582]
[1739292197946,0.07452,96632.0,96597.0,0.00056]
[1739292197947,0.2211,96631.0,96597.0,0.00056]
[1739292198143,0.3608,96607.0,96605.0,0.09322582]
[1739292198346,0.07252,96606.0,96605.0,0.09322582]
[1739292200054,0.07252,96606.0,96605.0,0.09422582]
[1739292201352,0.08736701,96606.0,96605.0,0.09422582]
[1739292201748,0.13769953,96606.0,96605.0,0.09422582]
[1739292202054,0.13369953,96606.0,96605.0,0.09522582]
[1739292203352,0.13469953,96606.0,96605.0,0.09422582]
[1739292203555,0.13469953,96606.0,96605.0,0.001]
[1739292204056,0.13569953,96606.0,96599.0,0.2070307]
[1739292204247,0.13569953,96606.0,96602.0,0.09322582]
[1739292204647,0.13469953,96606.0,96602.0,0.09322582]
[1739292204850,0.14069953,96606.0,96605.0,0.001]
[1739292205559,0.13769953,96606.0,96601.0,0.2070271]
[1739292205748,0.13769953,96606.0,96602.0,0.09322582]
[1739292206149,0.08936701,96606.0,96602.0,0.30025052]
[1739292206854,0.08636701,96606.0,96602.0,0.30025052]
[1739292207251,0.01384701,96606.0,96602.0,0.09322582]
[1739292207456,0.07252,96605.0,96604.0,0.2070207]
[1739292207757,0.01684701,96606.0,96604.0,0.2070207]
[1739292207758,0.01684701,96606.0,96605.0,0.09322582]
[1739292207961,0.08936701,96606.0,96605.0,0.09322582]
[1739292208160,0.08436701,96606.0,96605.0,0.09322582]
[1739292208964,0.08336701,96606.0,96605.0,0.09322582]
[1739292209657,0.08736701,96606.0,96605.0,0.09322582]
[1739292210254,0.08836701,96606.0,96605.0,0.09322582]